Cogmind - Beta 13 @@@ ROGUE MODE // 2024.06.18 @ 21:49:24 Player: ILikeVoltron Result: Self-destructed Performance ------------- Evolutions (1) 500 Regions Visited (2) 400 Robots Destroyed (23) 115 Value Destroyed (387) 387 Prototype IDs (0) 0 Alien Tech Used (0) 0 Bonus (0) 0 TOTAL SCORE: 1402 Bonus ------- None Cogmind --------- Core Integrity 382/400 Matter 263/300 Energy 250/250 System Corruption 0% Temperature Cool (0) Movement Walking (120) Location -9/Materials Parts ------- > --- POWER (1) -------- Ion Engine > --- PROPULSION (3) --- Aluminum Leg Aluminum Leg > --- UTILITY (3) ------ Medium Storage Unit Improved Terrain Scanner Tractor Beam > --- WEAPON (2) ------- Assault Rifle > --- INVENTORY (10) --- Ion Engine Light Treads Wheel Large Storage Unit Structural Scanner Seismic Detector Mining Laser Peak State ------------ > --- POWER ------------ Ion Engine > --- PROPULSION ------- Aluminum Leg Aluminum Leg > --- UTILITY ---------- Medium Storage Unit Improved Terrain Scanner Tractor Beam > --- WEAPON ----------- Assault Rifle Light Assault Rifle > --- INVENTORY -------- Ion Engine Light Treads Wheel Large Storage Unit Structural Scanner Seismic Detector Assault Rifle Mining Laser [Rating: 10] Favorites ----------- Power Ion Engine Engine Ion Engine Propulsion Aluminum Leg Leg Aluminum Leg Utility Medium Storage Unit Device Tractor Beam Storage Medium Storage Unit Protection Light Armor Plating Weapon Assault Rifle Energy Gun Small Laser Ballistic Gun Assault Rifle Build | -11 -10 -9 ------- Run | Yrd Mat Mat Slots Evolved 2 | . . 2 Power . | . . . Propulsion 1 | . . 1 Utility 1 | . . 1 Weapon . | . . . Parts Attached 16 | 1 13 2 Power 1 | . 1 . Engine 1 | . 1 . Core . | . . . Reactor . | . . . Propulsion 5 | . 5 . Treads . | . . . Leg 5 | . 5 . Wheel . | . . . Hover . | . . . Flight . | . . . Utility 8 | 1 6 1 Device 6 | 1 4 1 Storage 1 | . 1 . Processor . | . . . Hackware . | . . . Protection 1 | . 1 . Artifact . | . . . Weapon 2 | . 1 1 Energy Gun . | . . . Energy Cannon . | . . . Ballistic Gun 2 | . 1 1 Ballistic Cannon . | . . . Launcher . | . . . Special Weapon . | . . . Impact Weapon . | . . . Slashing Weapon . | . . . Piercing Weapon . | . . . Special Melee Weapon . | . . . Unidentified Prototypes . | . . . Parts Lost 4 | . 2 2 Power 1 | . 1 . Propulsion . | . . . Utility 1 | . 1 . Weapon 2 | . . 2 Highest Loss Streak 2 | . 1 2 To Critical Strikes . | . . . Average Slot Usage (%) 97 | . 98 88 Engine 12 | . 12 11 Leg 27 | . 28 22 Device 7 | . 6 22 Storage 13 | . 14 11 Protection 6 | . 7 . Energy Gun 1 | . 2 . Ballistic Gun 25 | . 25 22 Naked Turns . | . . . Heaviest Build 21 | 12 21 20 Greatest Support 20 | 20 20 20 Greatest Overweight (x) 1 | . 1 . Average Overweight (x) . | . . . Largest Inventory Capacity 10 | 8 10 10 Average Capacity 9 | 8 9 10 Most Carried 10 | 8 10 9 Average Carried 8 | 6 8 7 Final Capacity 10 | 8 10 10 Final Carried 10 | 8 10 7 Class Distribution -------------------- 54% | Scavenger-Mutant 45% | Mutant Dominant Class ---------------- Scavenger-Mutant | -10/Materials Scavenger-Mutant | -9/Materials Resources | -11 -10 -9 ----------- Run | Yrd Mat Mat Matter Collected 542 | 246 296 . Remotely 100 | . 100 . Salvage Created 740 | 166 472 102 Parts 55 | 15 37 3 Haulers Intercepted . | . . . Recyclers Shooed 2 | . 2 . Parts Field Recycled . | . . . Retrieved Matter . | . . . Parts Self-Destructed . | . . . Prevented . | . . . Kills | -11 -10 -9 ------- Run | Yrd Mat Mat Combat Hostiles Destroyed 13 | . 12 1 Guns 13 | . 12 1 Classes Destroyed 6 | 2 4 . Worker 1 | . 1 . Tunneler 5 | 4 1 . Recycler 3 | 1 1 1 Watcher 1 | . 1 . Swarmer 7 | . 6 1 Grunt 6 | . 6 . Best Kill Streak 3 | 3 3 2 Combat Bots Only 3 | . 3 1 Max Kills in Single Turn 1 | 1 1 1 Gunslinging . | . . . Exploded . | . . . Melee . | . . . Uniques/NPCs Destroyed . | . . . Combat | -11 -10 -9 -------- Run | Yrd Mat Mat Hostile Shots Fired 107 | . 78 29 Missed 36 | . 25 11 Damage Taken 769 | . 608 161 Core 111 | . 93 18 Absorbed by Shields . | . . . Core Remaining (%) 81 | 100 62 . Volleys Fired 67 | 12 46 9 Largest 2 | 2 2 2 Hottest 60 | 60 60 40 Shots Fired 131 | 24 92 15 Gun 131 | 24 92 15 Cannon . | . . . Launcher . | . . . Special . | . . . Kinetic 111 | 12 84 15 Thermal 20 | 12 8 . Explosive . | . . . Electromagnetic . | . . . Robot Hit Streak 13 | 6 13 2 Robot Miss Streak 8 | 3 8 7 Penetration Max . | . . . Secondary Targets 1 | . 1 . Max Gunslinging Chain 1 | . 1 . Shots Hit Robots 70 | 14 53 3 Core Hits 35 | 6 26 3 Critical Kills . | . . . Critical Parts Destroyed . | . . . Critical Strikes . | . . . Melee Attacks . | . . . Impact . | . . . Slashing . | . . . Piercing . | . . . Sneak Attacks . | . . . Combat Hostiles . | . . . Follow-up Attacks . | . . . Damage Inflicted 893 | 176 671 46 Guns 819 | 176 597 46 Cannons . | . . . Explosions 74 | . 74 . Melee . | . . . Ramming . | . . . Kinetic 709 | 111 552 46 Thermal 184 | 65 119 . Explosive . | . . . Electromagnetic . | . . . Impact . | . . . Slashing . | . . . Piercing . | . . . Highest Corruption . | . . . Average Corruption . | . . . Corruption Purged . | . . . Corruption Blocked . | . . . Overload Shots . | . . . Overflow Damage 16 | . 16 . Projectiles . | . . . Explosions 16 | . 16 . Melee . | . . . Knockbacks . | . . . Impact . | . . . Kinetic . | . . . Secondary . | . . . Self-Inflicted Damage 67 | . 67 . Shots 1 | . 1 . Rammed . | . . . Targets Rammed . | . . . Kicked . | . . . Crushed . | . . . Highest Temperature 53 | 20 53 6 Average Temperature 13 | 20 13 6 Received Heat Transfer 210 | . 186 24 Siege Activations . | . . . Robots Corrupted . | . . . Combat Hostiles . | . . . Parts Fried . | . . . Impact Corruptions . | . . . Robots Melted . | . . . Combat Hostiles . | . . . Parts Melted . | . . . Heat Transferred 350 | 150 200 . Parts Sabotaged . | . . . Parts Stolen . | . . . Parts Stripped . | . . . Power Chain Reactions . | . . . Alert | -11 -10 -9 ------- Run | Yrd Mat Mat Peak Influence 286 | 25 286 122 Initial 92 | . 16 92 Average 140 | 13 166 98 Maximum Alert Level 1 | . 1 . Low Security (%) 58 | 100 47 100 Level 1 41 | . 52 . Level 2 . | . . . Level 3 . | . . . Level 4 . | . . . Level 5 . | . . . High Security . | . . . Max Security . | . . . Squads Dispatched 1 | . 1 . Investigation . | . . . Extermination . | . . . Reinforcement 1 | . 1 . Assault . | . . . Garrison . | . . . Intercept . | . . . Searches Triggered . | . . . Construction Impeded . | . . . Haulers Reinforced . | . . . Active Scanning Responses . | . . . Cargo Convoy Interrupts . | . . . Stealth | -11 -10 -9 --------- Run | Yrd Mat Mat Distress Signals 2 | . 2 . Communications Jammed . | . . . Distress Signals . | . . . Times Spotted 24 | . 17 7 Peak Tracking Total 6 | . 5 6 Tactical Retreats 2 | . 2 . Traps | -11 -10 -9 ------- Run | Yrd Mat Mat Traps Triggered . | . . . Indirectly . | . . . Trap Hack Attempts . | . . . Triggered . | . . . Disarmed . | . . . Reprogrammed . | . . . Reused . | . . . Traps Extracted . | . . . Installed . | . . . Triggered . | . . . Machines | -11 -10 -9 ---------- Run | Yrd Mat Mat Machines Disabled 3 | . 3 . Max in Single Turn 2 | . 2 . Machines Repaired . | . . . Machines Dismantled . | . . . Machines Sabotaged . | . . . Overloaded Fab Kills . | . . . Hacking | -11 -10 -9 --------- Run | Yrd Mat Mat Machines Accessed . | . . . Terminals . | . . . Fabricators . | . . . Repair Stations . | . . . Recycling Units . | . . . Scanalyzers . | . . . Garrison Access . | . . . Total Hacks . | . . . Successful . | . . . Failed . | . . . Catastrophic . | . . . Database Lockouts . | . . . Manual . | . . . Terminals . | . . . Fabricators . | . . . Repair Stations . | . . . Recycling Units . | . . . Scanalyzers . | . . . Garrison Access . | . . . Terminal Hacks . | . . . Fabricator Hacks . | . . . Repair Station Hacks . | . . . Recycling Unit Hacks . | . . . Scanalyzer . | . . . Garrison Access Hacks . | . . . Unauthorized Hacks . | . . . Terminals . | . . . Fabricators . | . . . Repair Stations . | . . . Recycling Units . | . . . Scanalyzers . | . . . Garrison Access . | . . . Data Cores Recovered . | . . . Used . | . . . Hacking Detections . | . . . Full Trace Events . | . . . Feedback Events . | . . . Feedback Blocked . | . . . Robot Schematics Acquired . | . . . Robots Built . | . . . Authchips . | . . . Time . | . . . Total Robot Build Rating . | . . . Part Schematics Acquired . | . . . Parts Built . | . . . Authchips . | . . . Time . | . . . Total Part Build Rating . | . . . Parts Repaired . | . . . Time . | . . . Parts Recycled . | . . . Recycled Matter . | . . . Retrieved Matter . | . . . Retrieved Components . | . . . Parts Scanalyzed . | . . . Part Schematics Acquired . | . . . Parts Damaged . | . . . Bothacking | -11 -10 -9 ------------ Run | Yrd Mat Mat Used RIF Installer . | . . . Robots Hacked . | . . . Non-combat . | . . . Combat . | . . . Robot Hacks Applied . | . . . Relay Couplers Released . | . . . Fabnet Peak Effective % . | . . . Robots Rewired . | . . . Allies Hacked . | . . . Hacks Repelled . | . . . Allies | -11 -10 -9 -------- Run | Yrd Mat Mat Total Allies . | . . . Largest Group . | . . . Highest-Rated Group . | . . . Highest-Rated Ally . | . . . Total Orders . | . . . Ally Attacks . | . . . Total Damage . | . . . Kills . | . . . Allies Corrupted . | . . . Allies Melted . | . . . Intel | -11 -10 -9 ------- Run | Yrd Mat Mat Robot Analysis Total . | . . . Derelict Logs Recovered . | . . . Drone Launches . | . . . Drone Recoveries . | . . . Exploration | -11 -10 -9 ------------- Run | Yrd Mat Mat Turns Passed 753 | 109 598 46 Spaces Moved 386 | 55 314 17 Core . | . . . Treads . | . . . Legs 386 | 55 314 17 Wheels . | . . . Hover . | . . . Flight . | . . . Fastest Speed 120 | 120 120 120 Average Speed 132 | 120 134 120 Slowest Speed 190 | 120 190 120 Overloaded Moves . | . . . Propulsion Burnouts . | . . . Robots Hopped . | . . . Cave-ins Triggered . | . . . Exploration Rate (%) 14 | 4 35 5 Regions Visited 2 Branch Regions . Pre-discovered Areas . | . . . Known Exits Taken . | . . . Unknown Exits Taken 2 | 1 1 . Scrap Searched . | . . . Spaces Dug . | . . . Terrain Destroyed 18 | . 18 . Melee . | . . . Projectile . | . . . AOE 18 | . 18 . Terrain Rammed . | . . . Walls Destroyed . | . . . Machines Disabled . | . . . Actions | -11 -10 -9 --------- Run | Yrd Mat Mat Total 507 | 73 405 29 Wait 24 | 4 20 . Move 384 | 54 313 17 Hop . | . . . Pick Up 5 | 2 3 . Fast Attach 5 | 1 4 . Attach 2 | . . 2 Detach 1 | . 1 . Swap 9 | . 9 . Drop 10 | . 9 1 Fire 67 | 12 46 9 Melee . | . . . Ram . | . . . Kick . | . . . Crush . | . . . Escape Stasis . | . . . Rewire . | . . . Trap . | . . . Miscellaneous . | . . . Route ------- -11/Scrapyard -10/Materials -9/Materials History --------- Turn | Location | Event 13 | -11/Scrapyard | Discovered new exit (range 3) 110 | -11/Scrapyard | Entered Materials 316 | -10/Materials | Build established: Mutant 319 | -10/Materials | Discovered new exit (range 12) 644 | -10/Materials | Build established: Scavenger-Mutant 708 | -10/Materials | Entered another Materials area 708 | -9/Materials | Evolved 2 slots: Propulsion x1, Utility x1 754 | -9/Materials | Self-destructed Last Messages --------------- 00682_ K-01 Serf cleans the Terminal. 00686_ U-05 Engineer lays Concrete. 00687_ K-01 Serf collects debris. 00689_ U-05 Engineer lays Concrete. 00692_ K-01 Serf collects debris. PARAMETERS=PROPULSION+1,UTILITY+1 LOCATION=UNKNOWN GOAL=ESCAPE 00708_ Dropped Imp. Terrain Scanner. 00728_ T-07 Excavator is excavating. 00730_ Assault Rifle destroyed. 00731_ K-01 Serf collects debris. 00731_ T-07 Excavator is excavating. 00737_ S-10 Pest destroyed. 00740_ T-07 Excavator is excavating. 00745_ R-06 Scavenger destroyed. 00748_ T-07 Excavator is excavating. 00749_ U-05 Engineer lays Concrete. 00752_ T-07 Excavator is excavating. 00753_ Lgt. Assault Rifle destroyed. Map ----- +----------------------------------------------------+ | ?????????????????????????????????????????????? | | ?????????????????????????????????????????????? | | ?????????????????????????????????????????????? | | ??????????????????????????????????#??????????? | | ?????????????????????????????????????????????? | | ?????????????????????????????????????????????? | | ?????????????????????????????????????????????? | | ??????????????????????? ?????????#???????????? | | ??????????????????????????#########??????????? | | ??????????????????????????# #??????????? | | ????????????????? ????????# ! #??????????? | | ??????????????? ??????????# #??????????? | | ??????????????????????????# #####??????????? | | ??????????????????????????# #??????????????? | | ??????????????????????????# #??????????????? | | ???????????????#??????????# #??????????????? | | ???????????????#? ????????# #??????????????? | | ??????????????????????????# #??????????????? | | ??????????????????"???"???# #??????????????? | | ???????????#??????????????# #??????? ??????? | | ?????????????#????????????# #?"????#???????? | | ???????????#??????????????# =#??????????????? | | ????????????????#+#####+### !%###+####???????? | | ?????????????# t# T sg #???????? | | ?????????????# s%=gg + "???? | | ?????????????#?## || @ [ # "???? | | ????????????????# || r### #???????? | | ??????????? |! !! #???#???????? | | ???????????###### !! #???????????? | | ????????????????# !! #???????????? | | ????????????????# #???????????? | | ????????????????# #???????????? | | ?????????????#??# w a######## #???????????? | | ???????????????##+## ???????? #???????????? | | ???????????????? ?# ???????? #???????????? | | ??????????????? ??# ??????"?? #???????????? | | ?????????????? ???# ?????? ?? #???????????? | | ???????????????????# ???????????????????????? | | ???????????????????# ????? ?????????????????? | | ?????????????????????????????????????????????? | | ?????????????????????????????????????????????? | | ?????????????????????????????????????????????? | | ?????????????????????????????????????????????? | | ?????????????????????????????????????????????? | | ?????????????????????????????????????????????? | | ?????????????????????????????????????????????? | | ?????????????????????????????????????????????? | | ?????????????????????????????????????????????? | | ?????????????????????????????????????????????? | | ?????????????????????????????????????????????? | +----------------------------------------------------+ Best States ------------- Heat Dissipation 28 Energy Generation 10 Energy Capacity 250 Matter Stores 300 Matter Capacity 300 Sight Range 16 Terrain Scan Range 16 Terrain Scan Density 10 Armor Coverage 150 Evasion (%) 55 Item Schematics ----------------- None Robot Schematics ------------------ None Fabricated ------------ Nothing Alien Tech Used ----------------- None Achievements -------------- None Challenges ------------ None Game ------ Seed SapperHardcellScreen Manual? 0 Play Time 00:07:12 Cumulative 131.6 hours Start 2024.06.18 @ 21:42:38 End 2024.06.18 @ 21:49:24 Sessions 1 Manual Loads 0 Difficulty Rogue Special Mode None Game No. 210 Rogue 206 Adventurer 0 Explorer 4 Win Type - Total 0 Types 0/0/0/0/0/0/0/0/0 Lore% 26 Gallery% 46 Achievement% 34 Wizard Run 0 Options --------- Layout 2 ASCII 0 Keyboard 1 Movement Arrows Keybinds 0 Fullscreen 1 Font 32/SmallcapsGlow Map View 130x44 Zoom Use 0% Tactical HUD 1 Map Filters NONE Filters NONE Steam 1 RUN: e684d6d8-3426-442f-bb38-c657c0685ce0